fUSD/lending_fUSD_20250115
["ID","MTS","AMOUNT","RATE_DAILY","PERIOD"]
[348994752,1736926231400,150.0,0.00019406,120]
[348994768,1736926232340,-150.0,9.899e-05,2]
[348994769,1736926232350,-2982.41345549,9.9e-05,2]
[348994770,1736926232362,-1712.85192006,9.9e-05,2]
[348994771,1736926232373,-357.680135,9.9e-05,2]
[348994772,1736926232385,-1228.69348519,9.9e-05,2]
[348994773,1736926232455,-5698.2,9.9e-05,2]
[348994774,1736926232483,-1005.00961891,9.9e-05,2]
[348994775,1736926232597,-425.79210131,9.9e-05,2]
[348994776,1736926232715,-6422.10223236,9.9e-05,2]
[348994789,1736926238132,-476.7455,9.9e-05,2]
[348994790,1736926238158,-15838.17875957,9.9e-05,2]
[348994791,1736926238169,-539.34332047,9.9e-05,2]
[348994792,1736926238182,-6457.90436727,9.9e-05,2]
[348994793,1736926238289,-1730.02566665,9.9e-05,2]
[348994794,1736926238388,-102384.03982751,9.9e-05,2]
[348994795,1736926238397,-471.92505716,9.973e-05,2]
[348994796,1736926238409,-251.99600706,9.973e-05,2]
[348994797,1736926238421,-500.0,9.973e-05,2]
[348994798,1736926238430,-500.0,9.999e-05,2]
[348994799,1736926238439,-500.0,9.999e-05,2]
[348994800,1736926238452,-600.33,9.999e-05,2]
[348994801,1736926238462,-500.0,9.999e-05,2]
[348994802,1736926238472,-500.0,9.999e-05,2]
[348994803,1736926238482,-500.0,9.999e-05,2]
[348994804,1736926238497,-505.52984397,9.999e-05,2]
[348994805,1736926238506,-500.0,9.999e-05,2]
[348994806,1736926238516,-500.0,9.999e-05,2]
[348994808,1736926238525,-500.0,9.999e-05,2]
[348994809,1736926238536,-500.0,9.999e-05,2]
[348994811,1736926238545,-500.0,9.999e-05,2]
[348994813,1736926238554,-500.0,9.999e-05,2]
[348994815,1736926238563,-500.0,9.999e-05,2]
[348994817,1736926238574,-500.0,9.999e-05,2]
[348994819,1736926238583,-500.0,9.999e-05,2]
[348994821,1736926238592,-185.5168,9.999e-05,2]
[348994823,1736926238601,-500.0,9.999e-05,2]
[348994825,1736926238611,-500.93608496,9.999e-05,2]
[348994827,1736926238620,-500.0,9.999e-05,2]
[348994829,1736926238630,-500.0,9.999e-05,2]
[348994831,1736926238640,-500.0,9.999e-05,2]
[348994833,1736926238649,-500.0,9.999e-05,2]
[348994835,1736926238658,-500.0,9.999e-05,2]
[348994837,1736926238667,-500.0,9.999e-05,2]
[348994839,1736926238677,-500.0,9.999e-05,2]
[348994841,1736926238686,-371045.76387475,0.0001,2]
[348994844,1736926238697,-4925420.40744332,0.0001,2]
[348994846,1736926238708,-309.011,0.0001,2]
[348994848,1736926238719,-284.486,0.0001,2]
[348994850,1736926238730,-1743.24380671,0.0001,2]
[348994853,1736926238749,-7084.55719837,0.0001,2]
[348995032,1736926240607,-500.0,9.999e-05,2]
[348995034,1736926240617,-500.0,9.999e-05,2]
[348995036,1736926240627,-500.0,9.999e-05,2]
[348995038,1736926240637,-42835.78263175,0.0001,2]
[348995040,1736926240648,-705.30773281,0.0001,2]
[348995041,1736926240659,-610.264,0.0001,2]
[348995043,1736926240671,-141899.43705063,0.0001,2]
[348995046,1736926240687,-268.13583273,0.0001,2]
[348995048,1736926240700,-2631.01595791,0.0001,2]
[348995050,1736926240710,-487.46,0.0001,2]
[348995052,1736926240723,-3622.589999,0.0001,2]
[348995054,1736926240739,-743.11192609,0.0001,2]
[348995057,1736926240750,-488.05000002,0.0001,2]
[348995059,1736926240762,-9539.7816525,0.0001,2]
[348995061,1736926240773,-1181.43300001,0.0001,2]
[348995063,1736926240784,-569.75215579,0.0001,2]
[348995065,1736926240795,-17702.69882965,0.0001,2]
[348995067,1736926240810,-4975.56108033,0.0001,2]
[348995069,1736926240821,-102049.0009029,0.0001,2]
[348995070,1736926240830,-177084.71918017,0.0001,2]
[348995073,1736926240841,-22804.92664537,0.0001,2]
[348995075,1736926240850,-172.433161,0.0001,2]
[348995076,1736926240859,-571.05,0.00010137,2]
[348995078,1736926240869,-189.92,0.00010273,2]
[348995080,1736926240878,-589.0,0.00010273,2]
[348995082,1736926240887,-162.67289811,0.00010273,2]
[348995084,1736926240896,-500.0,0.00010273,2]
[348995086,1736926240905,-500.0,0.00010273,2]
[348995088,1736926240915,-500.0,0.00010273,2]
[348995089,1736926240924,-324.39721064,0.00010273,2]
[348995091,1736926240934,-282.04203098,0.00010273,2]
[348995093,1736926240945,-217.95796902,0.00010273,2]
[348995095,1736926240954,-500.0,0.00010273,2]
[348995097,1736926240963,-247.07,0.00010273,2]
[348995099,1736926240972,-500.0,0.00010273,2]
[348995101,1736926240981,-500.0,0.00010273,2]
[348995103,1736926240991,-637.44,0.00010273,2]
[348995105,1736926241000,-166.41,0.00010741,2]
[348995107,1736926241009,-215.73363331,0.000109,2]
[348995109,1736926241018,-550.0,0.00011,2]
[348995111,1736926241027,-197.54,0.00012329,2]
[348995112,1736926241037,-215.73363329,0.00012733,2]
[348995114,1736926241046,-1735.94,0.00012733,2]
[348995116,1736926241055,-250.0,0.00012772,2]
[348995118,1736926241064,-257.66,0.00012775,2]
[348995120,1736926241073,-203.5,0.00012778,2]
[348995122,1736926241082,-150.66,0.000128,2]
[348995124,1736926241091,-150.66,0.000128,2]
[348995126,1736926241100,-150.66,0.000128,2]
[348995127,1736926241109,-150.66,0.000128,2]
[348995129,1736926241118,-150.66,0.000128,2]
[348995131,1736926241127,-150.66,0.000128,2]
[348995133,1736926241136,-150.66,0.000128,2]
[348995135,1736926241145,-150.66,0.000128,2]
[348995137,1736926241154,-150.66,0.000128,2]
[348995139,1736926241163,-150.66,0.000128,2]
[348995141,1736926241173,-150.66,0.000128,2]
[348995142,1736926241182,-150.66,0.000128,2]
[348995144,1736926241191,-150.66,0.000128,2]
[348995146,1736926241200,-150.66,0.000128,2]
[348995148,1736926241209,-150.66,0.000128,2]
[348995150,1736926241218,-75.17669938,0.000128,2]
[348995152,1736926241230,-75.48330062,0.000128,2]
[348995154,1736926241240,-150.66,0.000128,2]
[348995156,1736926241250,-150.66,0.000128,2]
[348995158,1736926241259,-150.66,0.000128,2]
[348995160,1736926241268,-150.66,0.000128,2]
[348995162,1736926241277,-150.66,0.000128,2]
[348995163,1736926241287,-150.66,0.000128,2]
[348995165,1736926241296,-150.66,0.000128,2]
[348995167,1736926241306,-170.4,0.00012832,2]
[348995169,1736926241315,-150.66,0.0001285,2]
[348995171,1736926241326,-5384.26977937,0.0001286,2]
[348995380,1736926243306,-500.0,9.999e-05,2]
[348995384,1736926243337,-285.80510111,9.999e-05,2]
[348995397,1736926243455,-214.19489889,9.999e-05,2]
[348995399,1736926243464,-500.0,9.999e-05,2]
[348995401,1736926243474,-502.79096963,9.999e-05,2]
[348995403,1736926243483,-500.0,0.00010273,2]
[348995405,1736926243494,-500.0,0.00010273,2]
[348995406,1736926243505,-470.56,0.00012638,2]
[348995408,1736926243515,-3627.92413148,0.0001286,2]
[348995411,1736926243526,-964.07071431,0.0001286,2]
[348995413,1736926243538,-459.54769077,0.0001286,2]
[348995415,1736926243549,-6184.86040299,0.0001286,2]
[348995417,1736926243560,-6446.07728108,0.0001286,2]
[348995419,1736926243570,-400.0,0.00012903,2]
[348995421,1736926243580,-200.0,0.00012931,2]
[348995423,1736926243590,-151.553,0.00012932,2]
[348995425,1736926243599,-430.38,0.00012935,2]
[348995427,1736926243608,-250.0,0.00012996,2]
[348995429,1736926243617,-318.48695292,0.00013,2]
[348995433,1736926243642,-281.51304708,0.00013,2]
[348995435,1736926243650,-291.48016443,0.00013054,2]
[348995437,1736926243663,-548.45245324,0.00013054,2]
[348995439,1736926243672,-54.65216289,0.00013154,2]
[348995441,1736926243685,-282.48906522,0.00013154,2]
[348995740,1736926246378,-500.0,9.999e-05,2]
[348995742,1736926246387,-500.0,9.999e-05,2]
[348995745,1736926246396,-160.60321796,9.999e-05,2]
[348995748,1736926246408,-162.85877189,0.00013154,2]
[348995751,1736926246419,-500.0,0.00013154,2]
[348995753,1736926246428,-500.0,0.00013154,2]
[348995755,1736926246437,-372.99,0.00013154,2]
[348995757,1736926246447,-500.0,0.00013154,2]
[348995759,1736926246455,-500.0,0.00013154,2]
[348995761,1736926246464,-500.0,0.00013154,2]
[348995763,1736926246474,-500.0,0.00013154,2]
[348995765,1736926246484,-500.0,0.00013154,2]
[348995767,1736926246494,-500.0,0.00013154,2]
[348995768,1736926246502,-500.0,0.00013154,2]
[348995771,1736926246512,-500.0,0.00013154,2]
[348995773,1736926246521,-500.0,0.00013154,2]
[348995776,1736926246530,-500.0,0.00013154,2]
[348995779,1736926246540,-500.0,0.00013154,2]
[348995782,1736926246550,-500.0,0.0001316,2]
[348995785,1736926246559,-500.0,0.0001316,2]
[348995788,1736926246568,-500.0,0.0001316,2]
[348995791,1736926246577,-500.0,0.0001316,2]
[348995794,1736926246586,-500.0,0.0001316,2]
[348995797,1736926246595,-500.0,0.0001316,2]
[348995800,1736926246605,-500.0,0.0001316,2]
[348995803,1736926246614,-500.0,0.0001316,2]
[348995805,1736926246623,-500.0,0.0001316,2]
[348995808,1736926246632,-500.0,0.0001316,2]
[348995810,1736926246641,-500.0,0.0001316,2]
[348995813,1736926246651,-500.0,0.0001316,2]
[348995815,1736926246660,-500.0,0.0001316,2]
[348995817,1736926246670,-500.0,0.0001316,2]
[348995819,1736926246679,-500.0,0.0001316,2]
[348995821,1736926246688,-500.0,0.0001316,2]
[348995823,1736926246697,-500.0,0.0001316,2]
[348995825,1736926246707,-500.0,0.0001316,2]
[348995827,1736926246716,-500.0,0.0001316,2]
[348995829,1736926246725,-500.0,0.0001316,2]
[348995831,1736926246735,-500.0,0.0001316,2]
[348995833,1736926246745,-500.0,0.0001316,2]
[348995835,1736926246755,-500.0,0.0001316,2]
[348995837,1736926246764,-500.0,0.0001316,2]
[348995839,1736926246774,-500.0,0.0001316,2]
[348995841,1736926246783,-500.0,0.0001316,2]
[348995843,1736926246794,-500.0,0.00013161,2]
[348995845,1736926246803,-503.28349873,0.00013161,2]
[348995847,1736926246812,-500.0,0.00013161,2]
[348995849,1736926246822,-500.0,0.00013161,2]
[348995851,1736926246831,-500.0,0.00013161,2]
[348995853,1736926246840,-500.0,0.00013161,2]
[348995855,1736926246850,-1500.0,0.00013303,2]
[348995857,1736926246859,-189.72,0.00013324,2]
[348995859,1736926246869,-189.72,0.00013357,2]
[348995861,1736926246878,-189.72,0.0001339,2]
[348995863,1736926246887,-151.33,0.00013407,2]
[348995865,1736926246896,-500.0,0.00013428,2]
[348995867,1736926246906,-616.52,0.00013428,2]
[348995869,1736926246915,-500.0,0.00013428,2]
[348995871,1736926246925,-157.74,0.00013428,2]
[348995873,1736926246934,-500.0,0.00013428,2]
[348995875,1736926246943,-500.0,0.00013428,2]
[348995877,1736926246953,-500.0,0.00013428,2]
[348995879,1736926246962,-172.51,0.00013428,2]
[348995881,1736926246971,-500.0,0.00013428,2]
[348995883,1736926246981,-500.0,0.00013428,2]
[348995885,1736926246990,-165.76,0.00013434,2]
[348995887,1736926246999,-158.46,0.00013434,2]
[348995889,1736926247008,-239.02,0.00013434,2]
[348995891,1736926247017,-192.77,0.00013434,2]
[348995892,1736926247027,-211.46,0.00013434,2]
[348995895,1736926247037,-500.0,0.00013434,2]
[348995896,1736926247046,-500.0,0.00013434,2]
[348995899,1736926247055,-500.0,0.00013434,2]
[348995901,1736926247065,-500.0,0.00013434,2]
[348995903,1736926247075,-500.0,0.00013434,2]
[348995904,1736926247087,-231.82,0.0001349,2]
[348995906,1736926247096,-200.0,0.00013699,2]
[348995909,1736926247106,-596.2325764,0.00013702,2]
[348995910,1736926247116,-242.46,0.00013702,2]
[348995913,1736926247126,-500.0,0.00013702,2]
[348995914,1736926247135,-500.0,0.00013702,2]
[348995916,1736926247144,-500.0,0.00013702,2]
[348995919,1736926247153,-157.93,0.00013702,2]
[348995920,1736926247163,-500.0,0.00013702,2]
[348995923,1736926247172,-481.14,0.00013708,2]
[348995925,1736926247182,-500.0,0.00013708,2]
[348995926,1736926247191,-500.0,0.00013708,2]
[348995929,1736926247200,-500.0,0.00013708,2]
[348995930,1736926247209,-370.5,0.00013843,2]
[348995932,1736926247218,-393.56,0.00013976,2]
[348995934,1736926247228,-500.0,0.00013976,2]
[348995936,1736926247237,-500.0,0.00013976,2]
[348995938,1736926247246,-332.64,0.00013976,2]
[348995941,1736926247256,-498.1,0.00013982,2]
[348995943,1736926247265,-500.0,0.00013982,2]
[348995945,1736926247274,-499.77,0.00013982,2]
[348995946,1736926247283,-617.43,0.0001425,2]
[348995948,1736926247294,-500.0,0.0001425,2]
[348995951,1736926247303,-500.0,0.00014256,2]
[348995952,1736926247312,-311.6762,0.00014499,2]
[348995955,1736926247322,-640.215,0.00014499,2]
[348995957,1736926247332,-1377.0926,0.00014499,2]
[348995959,1736926247341,-400.0,0.00014516,2]
[348995961,1736926247350,-500.0,0.00014524,2]
[348995962,1736926247360,-533.06,0.0001453,2]
[348995964,1736926247370,-430.38,0.00014552,2]
[348995967,1736926247380,-500.0,0.00014553,2]
[348995968,1736926247389,-215.73363329,0.00014567,2]
[348995971,1736926247399,-500.0,0.00014598,2]
[348995973,1736926247410,-500.0,0.00014598,2]
[348995975,1736926247419,-500.0,0.00014598,2]
[348995977,1736926247429,-500.0,0.00014598,2]
[348995979,1736926247438,-500.0,0.00014598,2]
[348995981,1736926247447,-500.0,0.00014598,2]
[348995983,1736926247458,-500.0,0.00014598,2]
[348995985,1736926247467,-500.0,0.00014598,2]
[348995987,1736926247476,-599.89,0.00014598,2]
[348995989,1736926247486,-500.0,0.00014598,2]
[348995991,1736926247496,-500.0,0.00014598,2]
[348995993,1736926247506,-500.0,0.00014598,2]
[348995995,1736926247515,-500.0,0.00014598,2]
[348995997,1736926247524,-500.0,0.00014598,2]
[348995998,1736926247533,-500.0,0.00014598,2]
[348996000,1736926247543,-500.0,0.00014598,2]
[348996003,1736926247552,-500.0,0.00014598,2]
[348996004,1736926247562,-500.0,0.00014598,2]
[348996007,1736926247571,-500.0,0.00014598,2]
[348996008,1736926247580,-500.0,0.00014598,2]
[348996011,1736926247590,-500.0,0.00014598,2]
[348996013,1736926247599,-500.0,0.00014598,2]
[348996014,1736926247609,-500.0,0.00014598,2]
[348996017,1736926247619,-500.0,0.00014598,2]
[348996019,1736926247628,-500.0,0.00014598,2]
[348996021,1736926247638,-500.0,0.00014598,2]
[348996022,1736926247647,-500.0,0.00014598,2]
[348996025,1736926247657,-501.65475098,0.00014598,2]
[348996027,1736926247666,-500.0,0.00014598,2]
[348996028,1736926247676,-500.0,0.00014598,2]
[348996030,1736926247686,-500.0,0.00014598,2]
[348996032,1736926247695,-500.0,0.00014598,2]
[348996034,1736926247704,-312.458,0.00014598,2]
[348996036,1736926247715,-5153.2472,0.00014599,2]
[348996038,1736926247724,-42234.8312,0.00014599,2]
[348996040,1736926247733,-170.30473411,0.00014599,2]
[348996042,1736926247742,-500.0,0.00014698,2]
[348996044,1736926247751,-500.0,0.00014698,2]
[348996046,1736926247761,-629.44,0.00014698,2]
[348996048,1736926247770,-552.04,0.00014698,2]
[348996050,1736926247780,-500.0,0.00014698,2]
[348996052,1736926247790,-500.0,0.00014698,2]
[348996054,1736926247800,-500.0,0.00014698,2]
[348996056,1736926247809,-500.0,0.00014698,2]
[348996058,1736926247819,-500.0,0.00014698,2]
[348996060,1736926247828,-500.0,0.00014698,2]
[348996062,1736926247838,-500.0,0.00014698,2]
[348996064,1736926247848,-500.0,0.00014698,2]
[348996066,1736926247857,-500.0,0.00014698,2]
[348996068,1736926247866,-17576.9377,0.00014698,2]
[348996070,1736926247876,-57239.30909594,0.00014699,2]
[348996075,1736926247916,-1457.39863166,0.00014699,2]
[348996077,1736926247927,-19211.99999998,0.00014699,2]
[348996080,1736926247939,-1925.16239247,0.00014699,2]
[348996083,1736926247958,-405.155,0.00014699,2]
[348996085,1736926247969,-1397.97188857,0.00014699,2]
[348996087,1736926247985,-7121.66748193,0.00014699,2]
[348996090,1736926247995,-259.07304646,0.00014699,2]
[348996091,1736926248004,-13356.0,0.00014701,2]
[348996093,1736926248013,-200.0,0.00014703,2]
[348996115,1736926248202,-500.0,0.00014713,2]
[348996117,1736926248214,-500.0,0.00014713,2]
[348996119,1736926248224,-500.0,0.00014713,2]
[348996121,1736926248233,-500.0,0.00014798,2]
[348996123,1736926248243,-172.433161,0.0001485,2]
[348996125,1736926248252,-500.0,0.00014872,2]
[348996127,1736926248261,-457.16,0.00014872,2]
[348996129,1736926248271,-500.0,0.00014872,2]
[348996130,1736926248280,-342.25,0.00014872,2]
[348996132,1736926248290,-500.0,0.00014872,2]
[348996134,1736926248300,-500.0,0.00014872,2]
[348996137,1736926248310,-500.0,0.00014872,2]
[348996139,1736926248320,-500.0,0.00014872,2]
[348996140,1736926248330,-500.0,0.00014872,2]
[348996142,1736926248340,-500.0,0.00014872,2]
[348996144,1736926248350,-500.0,0.00014872,2]
[348996146,1736926248359,-500.0,0.00014872,2]
[348996148,1736926248370,-500.0,0.00014872,2]
[348996150,1736926248380,-500.0,0.00014872,2]
[348996152,1736926248390,-500.0,0.00014872,2]
[348996154,1736926248399,-500.0,0.00014872,2]
[348996156,1736926248411,-500.0,0.00014872,2]
[348996158,1736926248423,-271.50392021,0.00014872,2]
[348996161,1736926248434,-228.49607979,0.00014872,2]
[348996163,1736926248443,-535.81,0.00014872,2]
[348996165,1736926248454,-500.0,0.00014872,2]
[348996167,1736926248464,-500.0,0.00014872,2]
[348996169,1736926248474,-500.0,0.00014872,2]
[348996171,1736926248483,-500.0,0.00014872,2]
[348996173,1736926248494,-502.38346633,0.00014899,2]
[348996175,1736926248503,-501.03375384,0.00014899,2]
[348996177,1736926248513,-501.1216637,0.00014899,2]
[348996179,1736926248523,-500.0,0.00014899,2]
[348996181,1736926248533,-501.11638467,0.00014899,2]
[348996183,1736926248544,-501.2340475,0.00014899,2]
[348996185,1736926248553,-501.26898816,0.00014899,2]
[348996187,1736926248563,-504.38461754,0.00014899,2]
[348996189,1736926248572,-500.34263925,0.00014899,2]
[348996191,1736926248583,-500.0,0.00014899,2]
[348996193,1736926248593,-500.55636767,0.00014899,2]
[348996195,1736926248602,-501.16232858,0.00014899,2]
[348996197,1736926248611,-501.12268255,0.00014899,2]
[348996199,1736926248620,-500.5549151,0.00014899,2]
[348996201,1736926248630,-500.0,0.00014899,2]
[348996202,1736926248639,-500.0,0.00014899,2]
[348996204,1736926248650,-500.0,0.00014899,2]
[348996205,1736926248660,-152.22002435,0.00014899,2]
[348996206,1736926248678,-348.58075611,0.00014899,2]
[348996207,1736926248687,-500.82853175,0.00014899,2]
[348996208,1736926248698,-500.63327777,0.00014899,2]
[348996209,1736926248708,-500.0,0.00014899,2]
[348996210,1736926248719,-503.39433848,0.00014899,2]
[348996212,1736926248730,-500.0,0.00014899,2]
[348996213,1736926248740,-500.91694964,0.00014899,2]
[348996215,1736926248749,-500.0,0.00014899,2]
[348996217,1736926248759,-500.0,0.00014899,2]
[348996219,1736926248769,-519.52,0.00014899,2]
[348996221,1736926248778,-500.0,0.00014899,2]
[348996223,1736926248788,-500.0,0.00014899,2]
[348996225,1736926248798,-500.0,0.00014899,2]
[348996227,1736926248807,-500.0,0.00014899,2]
[348996229,1736926248817,-500.48261642,0.00014899,2]
[348996231,1736926248827,-500.0,0.00014899,2]
[348996233,1736926248837,-500.0,0.00014899,2]
[348996235,1736926248846,-501.05994118,0.00014899,2]
[348996237,1736926248856,-500.0,0.00014899,2]
[348996239,1736926248865,-500.0,0.00014899,2]
[348996241,1736926248875,-500.30481047,0.00014899,2]
[348996243,1736926248884,-500.0,0.00014899,2]
[348996245,1736926248894,-500.0,0.00014899,2]
[348996247,1736926248903,-545.52,0.00014899,2]
[348996249,1736926248912,-500.82902876,0.00014899,2]
[348996251,1736926248922,-502.61471287,0.00014899,2]
[348996253,1736926248932,-500.0,0.00014899,2]
[348996255,1736926248941,-500.0,0.00014899,2]
[348996257,1736926248950,-500.48434277,0.00014899,2]
[348996259,1736926248960,-500.0,0.00014899,2]
[348996261,1736926248970,-500.0,0.00014899,2]
[348996263,1736926248979,-500.70831654,0.00014899,2]
[348996265,1736926248989,-500.0,0.00014899,2]
[348996267,1736926248999,-500.20843444,0.00014899,2]
[348996269,1736926249008,-500.0,0.00014899,2]
[348996270,1736926249017,-500.0,0.00014899,2]
[348996273,1736926249027,-500.0,0.00014899,2]
[348996275,1736926249037,-500.0,0.00014899,2]
[348996277,1736926249047,-500.0,0.00014899,2]
[348996278,1736926249057,-500.82886522,0.00014899,2]
[348996281,1736926249067,-500.0,0.00014899,2]
[348996282,1736926249077,-500.7753573,0.00014899,2]
[348996284,1736926249086,-509.00699543,0.00014899,2]
[348996287,1736926249096,-500.62312088,0.00014899,2]
[348996288,1736926249106,-500.0,0.00014899,2]
[348996290,1736926249115,-500.41820503,0.00014899,2]
[348996292,1736926249124,-500.4549723,0.00014899,2]
[348996294,1736926249134,-256.87044021,0.00014899,2]
[348996296,1736926249143,-500.35585147,0.00014899,2]
[348996298,1736926249152,-500.0,0.00014899,2]
[348996300,1736926249162,-500.0,0.00014899,2]
[348996302,1736926249171,-500.0,0.00014899,2]
[348996304,1736926249180,-500.0,0.00014899,2]
[348996306,1736926249189,-500.37866687,0.00014899,2]
[348996308,1736926249198,-500.0,0.00014899,2]
[348996310,1736926249207,-500.0,0.00014899,2]
[348996312,1736926249217,-500.0,0.00014899,2]
[348996314,1736926249226,-500.0,0.00014899,2]
[348996316,1736926249236,-500.0,0.00014899,2]
[348996318,1736926249245,-500.0,0.00014899,2]
[348996320,1736926249255,-500.0,0.00014899,2]
[348996322,1736926249265,-500.0,0.00014899,2]
[348996324,1736926249275,-500.0,0.00014899,2]
[348996326,1736926249285,-500.0,0.00014899,2]
[348996328,1736926249296,-500.0,0.00014899,2]
[348996330,1736926249305,-500.0,0.00014899,2]
[348996332,1736926249315,-500.0,0.00014899,2]
[348996333,1736926249325,-500.0,0.00014899,2]
[348996335,1736926249335,-500.0,0.00014899,2]
[348996337,1736926249345,-500.0,0.00014899,2]
[348996339,1736926249354,-500.0,0.00014899,2]
[348996341,1736926249364,-500.0,0.00014899,2]
[348996343,1736926249374,-542.8,0.00014899,2]
[348996345,1736926249384,-500.0,0.00014899,2]
[348996347,1736926249394,-500.0,0.00014899,2]
[348996349,1736926249404,-500.0,0.00014899,2]
[348996351,1736926249417,-500.0,0.00014899,2]
[348996353,1736926249427,-500.0,0.00014899,2]
[348996355,1736926249437,-500.0,0.00014899,2]
[348996357,1736926249447,-548.47,0.00014899,2]
[348996359,1736926249457,-500.0,0.00014899,2]
[348996361,1736926249466,-500.0,0.00014899,2]
[348996363,1736926249476,-500.0,0.00014899,2]
[348996365,1736926249485,-500.0,0.00014899,2]
[348996367,1736926249497,-500.0,0.00014899,2]
[348996369,1736926249506,-500.0,0.00014899,2]
[348996371,1736926249515,-500.0,0.00014899,2]
[348996373,1736926249525,-500.0,0.00014899,2]
[348996375,1736926249534,-500.0,0.00014899,2]
[348996377,1736926249544,-500.0,0.00014899,2]
[348996379,1736926249554,-500.0,0.00014899,2]
[348996381,1736926249564,-500.39124297,0.00014899,2]
[348996383,1736926249573,-500.0,0.00014899,2]
[348996385,1736926249583,-500.0,0.00014899,2]
[348996387,1736926249593,-500.0,0.00014899,2]
[348996389,1736926249603,-624.91,0.00014899,2]
[348996391,1736926249613,-500.0,0.00014899,2]
[348996393,1736926249622,-500.0,0.00014899,2]
[348996395,1736926249632,-500.0,0.00014899,2]
[348996397,1736926249642,-500.0,0.00014899,2]
[348996399,1736926249651,-500.0,0.00014899,2]
[348996401,1736926249660,-310.05988319,0.00014899,2]
[348996403,1736926249670,-500.0,0.00014899,2]
[348996405,1736926249679,-500.0,0.00014899,2]
[348996407,1736926249688,-500.0,0.00014899,2]
[348996408,1736926249697,-398.0540235,0.00014899,2]
[348996410,1736926249706,-500.0,0.00014899,2]
[348996412,1736926249716,-500.0,0.00014899,2]
[348996414,1736926249726,-500.0,0.00014899,2]
[348996416,1736926249735,-500.0,0.00014899,2]
[348996418,1736926249745,-500.0,0.00014899,2]
[348996420,1736926249754,-500.0,0.00014899,2]
[348996422,1736926249764,-460.62955444,0.00014899,2]
[348996424,1736926249774,-500.0,0.00014899,2]
[348996426,1736926249784,-500.0,0.00014899,2]
[348996428,1736926249793,-500.0,0.00014899,2]
[348996430,1736926249802,-500.0,0.00014899,2]
[348996432,1736926249811,-500.0,0.00014899,2]
[348996434,1736926249821,-500.0,0.00014899,2]
[348996437,1736926249831,-500.0,0.00014899,2]
[348996439,1736926249841,-500.0,0.00014899,2]
[348996440,1736926249850,-500.0,0.00014899,2]
[348996442,1736926249859,-500.0,0.00014899,2]
[348996444,1736926249869,-500.66955117,0.00014899,2]
[348996446,1736926249879,-500.0,0.00014899,2]
[348996448,1736926249888,-500.0,0.00014899,2]
[348996450,1736926249897,-500.5646207,0.00014899,2]
[348996452,1736926249906,-503.41,0.00014899,2]
[348996454,1736926249916,-500.0,0.00014899,2]
[348996456,1736926249925,-500.0,0.00014899,2]
[348996458,1736926249934,-500.0,0.00014899,2]
[348996460,1736926249945,-500.1572121,0.00014899,2]
[348996462,1736926249955,-500.0,0.00014899,2]
[348996464,1736926249964,-500.0,0.00014899,2]
[348996466,1736926249974,-500.0,0.00014899,2]
[348996468,1736926249984,-500.0,0.00014899,2]
[348996470,1736926249993,-500.15425859,0.00014899,2]